fUST/lending_fUST_20250901
["ID","MTS","AMOUNT","RATE_DAILY","PERIOD"]
[382636815,1756689067393,-409.0,0.00017324,2]
[382636816,1756689067402,-422.354,0.00017324,2]
[382636817,1756689067412,-6000.0,0.00017327,2]
[382636818,1756689067421,-150.0,0.00017365,2]
[382636819,1756689067431,-790.0,0.00017378,2]
[382636820,1756689067440,-660.0,0.00017388,2]
[382636821,1756689067449,-660.0,0.00017411,2]
[382636822,1756689067458,-480.0,0.00017419,2]
[382636823,1756689067467,-519.65,0.00017419,2]
[382636824,1756689067479,-480.0,0.0001742,2]
[382636825,1756689067488,-480.0,0.0001742,2]
[382636826,1756689067497,-1122.55,0.0001742,2]
[382636827,1756689067506,-1442.1,0.0001742,2]
[382636828,1756689067515,-480.0,0.00017421,2]
[382636829,1756689067523,-850.28,0.00017421,2]
[382636830,1756689067532,-480.0,0.00017421,2]
[382636831,1756689067545,-621.71,0.00017421,2]
[382636832,1756689067555,-2820.71,0.00017421,2]
[382636833,1756689067563,-711.48,0.00017421,2]
[382636834,1756689067572,-480.0,0.00017421,2]
[382636835,1756689067581,-1582.58,0.00017421,2]
[382636836,1756689067590,-513.5,0.00017421,2]
[382636837,1756689067598,-509.55,0.00017421,2]
[382636838,1756689067607,-682.77,0.00017421,2]
[382636839,1756689067616,-573.45,0.00017421,2]
[382636840,1756689067625,-1291.7,0.00017422,2]
[382636841,1756689067634,-489.68,0.00017422,2]
[382636842,1756689067643,-587.99,0.00017422,2]
[382636843,1756689067652,-634.54,0.00017422,2]
[382636844,1756689067661,-2453.1,0.00017422,2]
[382636845,1756689067670,-2091.03,0.00017422,2]
[382636846,1756689067679,-1558.0,0.00017423,2]
[382636847,1756689067687,-500.0,0.00017423,2]
[382636848,1756689067696,-923.5,0.00017423,2]
[382636849,1756689067705,-480.0,0.00017423,2]
[382636850,1756689067714,-480.0,0.00017423,2]
[382636851,1756689067722,-480.0,0.00017423,2]
[382636852,1756689067731,-480.0,0.00017423,2]
[382636853,1756689067740,-553.75,0.00017423,2]
[382636854,1756689067749,-480.0,0.00017423,2]
[382636855,1756689067758,-924.51,0.00017423,2]
[382636856,1756689067768,-480.0,0.00017423,2]
[382636857,1756689067777,-480.0,0.00017423,2]
[382636858,1756689067787,-260.31049561,0.00017424,2]
[382636859,1756689067799,-480.0,0.00017424,2]
[382636860,1756689067809,-315.80632423,0.00017424,2]
[382636861,1756689067819,-480.0,0.00017424,2]
[382636862,1756689067828,-480.0,0.00017424,2]
[382636863,1756689067838,-208.22985903,0.00017424,2]
[382636864,1756689067847,-542.02,0.00017424,2]
[382636865,1756689067857,-586.15,0.00017424,2]
[382636866,1756689067867,-509.5,0.00017424,2]
[382636867,1756689067877,-1496.31,0.00017424,2]
[382636868,1756689067887,-480.0,0.00017424,2]
[382636869,1756689067897,-610.21,0.00017424,2]
[382636870,1756689067907,-480.0,0.00017424,2]
[382636871,1756689067918,-480.0,0.00017424,2]
[382636872,1756689067927,-663.98,0.00017424,2]
[382636873,1756689067937,-880.91,0.00017424,2]
[382636874,1756689067947,-554.06,0.00017424,2]
[382636875,1756689067957,-1151.55,0.00017424,2]
[382636876,1756689067967,-798.54,0.00017424,2]
[382636877,1756689067976,-513.77,0.00017424,2]
[382636878,1756689067986,-480.0,0.00017424,2]
[382636879,1756689067996,-480.0,0.00017424,2]
[382636880,1756689068005,-480.0,0.00017424,2]
[382636881,1756689068015,-500.89,0.00017424,2]
[382636882,1756689068024,-480.0,0.00017424,2]
[382636883,1756689068034,-480.0,0.00017424,2]
[382636884,1756689068044,-582.7,0.00017424,2]
[382636885,1756689068054,-771.53,0.00017424,2]
[382636886,1756689068064,-480.0,0.00017424,2]
[382636887,1756689068073,-500.75,0.00017424,2]
[382636888,1756689068083,-480.0,0.00017424,2]
[382636889,1756689068093,-631.38,0.00017424,2]
[382636890,1756689068102,-981.71,0.00017424,2]
[382636891,1756689068112,-480.0,0.00017424,2]
[382636892,1756689068121,-994.5,0.00017424,2]
[382636893,1756689068130,-480.0,0.00017424,2]
[382636894,1756689068140,-403.69838574,0.00017424,2]
[382636895,1756689068150,-932.83,0.00017424,2]
[382636896,1756689068160,-1289.01,0.00017424,2]
[382636897,1756689068170,-514.08,0.00017424,2]
[382636898,1756689068180,-776.13,0.00017424,2]
[382636899,1756689068190,-480.0,0.00017424,2]
[382636900,1756689068200,-480.0,0.00017424,2]
[382636901,1756689068210,-480.0,0.00017424,2]
[382636902,1756689068219,-480.0,0.00017424,2]
[382636903,1756689068229,-945.39,0.00017424,2]
[382636904,1756689068239,-480.0,0.00017424,2]
[382636905,1756689068249,-659.03,0.00017424,2]
[382636906,1756689068259,-480.0,0.00017424,2]
[382636907,1756689068269,-1115.88,0.00017424,2]
[382636908,1756689068279,-891.1,0.00017424,2]
[382636909,1756689068291,-857.01,0.00017424,2]
[382636910,1756689068301,-480.0,0.00017424,2]
[382636911,1756689068310,-860.37,0.00017424,2]
[382636912,1756689068321,-480.0,0.00017424,2]
[382636913,1756689068330,-480.0,0.00017424,2]
[382636914,1756689068340,-947.37,0.00017424,2]
[382636915,1756689068350,-990.54,0.00017424,2]
[382636916,1756689068360,-480.0,0.00017424,2]
[382636917,1756689068369,-480.0,0.00017424,2]
[382636918,1756689068379,-282.73421444,0.00017424,2]
[382636919,1756689068389,-480.0,0.00017424,2]
[382636920,1756689068398,-480.0,0.00017424,2]
[382636921,1756689068409,-1031.24,0.00017424,2]
[382636922,1756689068418,-819.8,0.00017424,2]
[382636923,1756689068427,-706.26,0.00017426,2]
[382636924,1756689068437,-1177.7,0.00017426,2]
[382636925,1756689068447,-6455.49,0.00017426,2]
[382636926,1756689068457,-1485.05,0.00017426,2]
[382636927,1756689068467,-4337.97,0.00017426,2]
[382636928,1756689068477,-480.0,0.00017426,2]
[382636929,1756689068490,-1035.03,0.00017426,2]
[382636930,1756689068500,-6564.42,0.00017426,2]
[382636931,1756689068510,-3696.86,0.00017426,2]
[382636932,1756689068520,-2494.64,0.00017426,2]
[382636933,1756689068531,-656.5,0.00017426,2]
[382636934,1756689068541,-480.0,0.00017426,2]
[382636935,1756689068551,-2577.1,0.00017426,2]
[382636936,1756689068562,-3756.17,0.00017427,2]
[382636937,1756689068572,-480.0,0.00017427,2]
[382636938,1756689068582,-1310.71,0.00017427,2]
[382636939,1756689068591,-607.44,0.00017429,2]
[382636940,1756689068601,-480.0,0.00017429,2]
[382636941,1756689068611,-480.0,0.00017429,2]
[382636942,1756689068621,-1132.18,0.00017429,2]
[382636943,1756689068631,-601.44,0.00017429,2]
[382636944,1756689068641,-480.0,0.00017429,2]
[382636945,1756689068651,-968.24,0.00017429,2]
[382636946,1756689068660,-685.39,0.00017429,2]
[382636947,1756689068670,-480.0,0.00017429,2]
[382636948,1756689068679,-480.0,0.00017429,2]
[382636949,1756689068690,-541.01,0.00017429,2]
[382636950,1756689068699,-1430.03,0.00017429,2]
[382636951,1756689068710,-480.0,0.00017429,2]
[382636952,1756689068719,-510.17,0.00017429,2]
[382636953,1756689068729,-480.0,0.00017429,2]
[382636954,1756689068739,-1359.72,0.00017429,2]
[382636955,1756689068749,-1128.95,0.00017429,2]
[382636956,1756689068759,-480.0,0.00017429,2]
[382636957,1756689068768,-480.0,0.00017429,2]
[382636958,1756689068778,-1271.94,0.00017429,2]
[382636959,1756689068787,-480.0,0.00017429,2]
[382636960,1756689068799,-480.0,0.00017429,2]
[382636961,1756689068809,-1247.55,0.00017429,2]
[382636962,1756689068819,-480.0,0.00017429,2]
[382636963,1756689068829,-480.0,0.00017429,2]
[382636964,1756689068838,-606.01,0.00017429,2]
[382636965,1756689068848,-480.0,0.00017429,2]
[382636966,1756689068858,-597.33,0.00017429,2]
[382636967,1756689068868,-480.0,0.00017429,2]
[382636968,1756689068878,-1018.09,0.00017429,2]
[382636969,1756689068888,-1127.08,0.00017429,2]
[382636970,1756689068898,-958.16,0.00017429,2]
[382636971,1756689068907,-1167.29,0.00017429,2]
[382636972,1756689068917,-480.0,0.00017429,2]
[382636973,1756689068927,-480.0,0.00017429,2]
[382636974,1756689068937,-208.86,0.00017429,2]
[382636975,1756689068947,-1072.46,0.00017429,2]
[382636976,1756689068956,-1440.15,0.00017429,2]
[382636977,1756689068966,-508.59,0.00017429,2]
[382636978,1756689068976,-480.0,0.00017429,2]
[382636979,1756689068986,-516.59,0.00017429,2]
[382636980,1756689068996,-480.0,0.00017429,2]
[382636981,1756689069006,-2022.72,0.00017429,2]
[382636982,1756689069016,-1267.73,0.00017429,2]
[382636983,1756689069025,-588.04,0.00017429,2]
[382636984,1756689069036,-480.0,0.00017431,2]
[382636985,1756689069047,-480.0,0.00017431,2]
[382636986,1756689069056,-480.0,0.00017431,2]
[382636987,1756689069066,-480.0,0.00017431,2]
[382636988,1756689069075,-480.0,0.00017431,2]
[382636989,1756689069085,-480.0,0.00017431,2]
[382636990,1756689069095,-480.0,0.00017431,2]
[382636991,1756689069105,-480.0,0.00017431,2]
[382636992,1756689069116,-480.0,0.00017431,2]
[382636993,1756689069126,-555.74162326,0.00017431,2]
[382636994,1756689069134,-494.47,0.00017431,2]
[382636995,1756689069142,-838.76,0.00017431,2]
[382636996,1756689069151,-480.0,0.00017431,2]
[382636997,1756689069159,-915.12,0.00017431,2]
[382636998,1756689069169,-480.0,0.00017431,2]
[382636999,1756689069179,-1264.08,0.00017431,2]
[382637000,1756689069189,-480.0,0.00017431,2]
[382637001,1756689069198,-480.0,0.00017431,2]
[382637002,1756689069208,-480.0,0.00017431,2]
[382637003,1756689069218,-600.03,0.00017431,2]
[382637004,1756689069228,-480.0,0.00017431,2]
[382637005,1756689069239,-480.0,0.00017431,2]
[382637006,1756689069248,-480.0,0.00017431,2]
[382637007,1756689069258,-1228.82,0.00017431,2]
[382637008,1756689069267,-205.36542853,0.00017431,2]
[382637009,1756689069277,-480.0,0.00017431,2]
[382637010,1756689069287,-1158.01,0.00017431,2]
[382637011,1756689069299,-480.0,0.00017431,2]
[382637012,1756689069309,-480.0,0.00017431,2]
[382637013,1756689069319,-515.07,0.00017431,2]
[382637014,1756689069329,-480.0,0.00017431,2]
[382637015,1756689069339,-588.33396438,0.00017431,2]
[382637016,1756689069350,-480.0,0.00017431,2]
[382637017,1756689069360,-480.0,0.00017431,2]
[382637018,1756689069370,-480.0,0.00017431,2]
[382637019,1756689069380,-795.37,0.00017431,2]
[382637020,1756689069391,-626.57,0.00017431,2]
[382637021,1756689069401,-480.0,0.00017431,2]
[382637022,1756689069410,-635.1,0.00017431,2]
[382637023,1756689069628,-480.0,0.00017431,2]
[382637024,1756689069638,-480.0,0.00017431,2]
[382637025,1756689069648,-584.5,0.00017431,2]
[382637026,1756689069657,-480.0,0.00017431,2]
[382637027,1756689069667,-751.25,0.00017431,2]
[382637028,1756689069677,-480.0,0.00017431,2]
[382637029,1756689069686,-1300.22,0.00017431,2]
[382637030,1756689069696,-480.0,0.00017431,2]
[382637031,1756689069705,-480.0,0.00017431,2]
[382637032,1756689069715,-480.0,0.00017431,2]
[382637033,1756689069725,-480.0,0.00017431,2]
[382637034,1756689069734,-480.0,0.00017431,2]
[382637035,1756689069744,-586.99,0.00017431,2]
[382637036,1756689069754,-523.14,0.00017431,2]
[382637037,1756689069763,-480.0,0.00017431,2]
[382637038,1756689069773,-480.0,0.00017431,2]
[382637039,1756689069783,-491.45,0.00017431,2]
[382637040,1756689069796,-480.0,0.00017431,2]
[382637041,1756689069805,-480.0,0.00017431,2]
[382637042,1756689069815,-550.15,0.00017431,2]
[382637043,1756689069824,-1306.53,0.00017431,2]
[382637044,1756689069834,-480.0,0.00017431,2]
[382637045,1756689069844,-480.0,0.00017431,2]
[382637046,1756689069853,-1285.91,0.00017431,2]
[382637047,1756689069863,-480.0,0.00017431,2]
[382637048,1756689069872,-570.71,0.00017431,2]
[382637049,1756689069882,-1226.75,0.00017431,2]
[382637050,1756689069892,-210.11775553,0.00017431,2]
[382637051,1756689069901,-480.0,0.00017431,2]
[382637052,1756689069911,-480.0,0.00017431,2]
[382637053,1756689069921,-480.0,0.00017431,2]
[382637054,1756689069931,-672.42,0.00017431,2]
[382637055,1756689069941,-480.0,0.00017431,2]
[382637056,1756689069950,-480.0,0.00017431,2]
[382637057,1756689069960,-480.0,0.00017431,2]
[382637058,1756689069970,-480.0,0.00017431,2]
[382637059,1756689069979,-480.0,0.00017431,2]
[382637060,1756689069989,-480.0,0.00017431,2]
[382637061,1756689069999,-748.29,0.00017431,2]
[382637062,1756689070009,-512.22,0.00017431,2]
[382637063,1756689070019,-789.05,0.00017433,2]
[382637064,1756689070029,-1480.4,0.00017433,2]
[382637065,1756689070039,-716.66,0.00017433,2]
[382637066,1756689070053,-480.0,0.00017434,2]
[382637067,1756689070063,-721.85,0.00017434,2]
[382637068,1756689070073,-1431.94,0.00017434,2]
[382637069,1756689070084,-779.49,0.00017434,2]
[382637070,1756689070094,-480.0,0.00017434,2]
[382637071,1756689070104,-919.52,0.00017434,2]
[382637072,1756689070114,-1234.17603992,0.00017434,2]
[382637073,1756689070486,-114.63396008,0.00017434,2]
[382637074,1756689070495,-244.08604172,0.00017434,2]
[382637076,1756689092262,1014.906234,0.00013699,2]
[382637077,1756689092313,-500.0,0.00016048,2]
[382637078,1756689092341,-500.0,0.00016048,2]
[382637079,1756689092370,-523.35299082,0.00016048,2]
[382637080,1756689092401,-500.0,0.00016048,2]
[382637081,1756689092429,-500.0,0.00016048,2]
[382637082,1756689092459,-500.0,0.00016048,2]
[382637083,1756689092491,-500.0,0.00016048,2]
[382637084,1756689092521,-500.0,0.00016048,2]
[382637085,1756689092551,-558.93557004,0.00016048,2]
[382637086,1756689092580,-167.81522942,0.00016048,2]
[382637087,1756689092714,-513.57349716,0.00016048,2]
[382637088,1756689092745,-500.0,0.00016048,2]
[382637089,1756689092779,-500.0,0.00016048,2]
[382637090,1756689092809,-500.0,0.00016048,2]
[382637091,1756689092837,-500.0,0.00016048,2]
[382637092,1756689092865,-500.0,0.00016048,2]
[382637093,1756689092894,-500.0,0.00016048,2]
[382637094,1756689092922,-500.0,0.00016048,2]
[382637095,1756689092951,-500.0,0.00016048,2]
[382637096,1756689092982,-472.86300568,0.00016048,2]
[382637097,1756689093107,-27.13699432,0.00016048,2]
[382637098,1756689093138,-500.0,0.00016048,2]
[382637099,1756689093169,-500.0,0.00016048,2]
[382637100,1756689093200,-500.0,0.00016048,2]
[382637101,1756689093401,-500.0,0.00016048,2]
[382637102,1756689093435,-500.0,0.00016048,2]
[382637103,1756689093467,-500.0,0.00016048,2]
[382637104,1756689093509,-500.0,0.00016048,2]
[382637105,1756689093541,-500.0,0.00016048,2]
[382637106,1756689093577,-500.0,0.00016048,2]
[382637107,1756689093607,-445.73601136,0.00016048,2]
[382637108,1756689093764,-54.26398864,0.00016048,2]
[382637109,1756689093795,-500.0,0.00016048,2]
[382637110,1756689093825,-500.0,0.00016048,2]
[382637111,1756689093857,-500.0,0.00016048,2]
[382637112,1756689093886,-500.0,0.00016048,2]
[382637113,1756689093916,-500.0,0.00016048,2]
[382637114,1756689093946,-500.0,0.00016048,2]
[382637115,1756689093977,-500.0,0.00016048,2]
[382637116,1756689094007,-500.0,0.00016048,2]
[382637117,1756689094037,-500.0,0.00016048,2]
[382637118,1756689094067,-391.48202272,0.00016048,2]
[382637119,1756689094317,-108.51797728,0.00016048,2]
[382637120,1756689094349,-500.0,0.00016048,2]
[382637121,1756689094379,-500.0,0.00016048,2]
[382637122,1756689094411,-500.0,0.00016048,2]
[382637123,1756689094442,-500.0,0.00016048,2]
[382637124,1756689094474,-500.0,0.00016048,2]
[382637125,1756689094509,-500.0,0.00016048,2]
[382637126,1756689094541,-500.0,0.00016048,2]
[382637127,1756689094574,-500.0,0.00016048,2]
[382637128,1756689094603,-500.0,0.00016048,2]
[382637129,1756689094633,-282.97404544,0.00016048,2]
[382637130,1756689094717,-217.02595456,0.00016048,2]
[382637131,1756689094749,-618.37587988,0.00016048,2]
[382637132,1756689094779,-500.0,0.00016048,2]
[382637133,1756689094810,-500.0,0.00016048,2]
[382637134,1756689094840,-500.0,0.00016048,2]
[382637135,1756689094872,-500.0,0.00016048,2]
[382637136,1756689094903,-500.0,0.00016048,2]
[382637137,1756689094932,-500.0,0.00016048,2]
[382637138,1756689094963,-500.0,0.00016048,2]
[382637139,1756689094996,-500.0,0.00016048,2]
[382637140,1756689095156,-500.0,0.00016048,2]
[382637141,1756689095187,-500.0,0.00016048,2]
[382637142,1756689095221,-500.0,0.00016048,2]
[382637143,1756689095251,-500.0,0.00016048,2]
[382637144,1756689095281,-500.0,0.00016048,2]
[382637145,1756689095315,-500.0,0.00016048,2]
[382637146,1756689095344,-480.0,0.00016048,2]
[382637147,1756689095373,-500.0,0.00016049,2]
[382637148,1756689095402,-500.0,0.00016049,2]
[382637149,1756689095432,-480.0,0.00016049,2]
[382637150,1756689095800,-480.0,0.00016049,2]
[382637151,1756689095829,-480.0,0.00016049,2]
[382637152,1756689095857,-480.0,0.00016049,2]
[382637153,1756689095884,-480.0,0.00016049,2]
[382637154,1756689095913,-480.0,0.00016049,2]
[382637155,1756689095945,-480.0,0.00016049,2]
[382637156,1756689095974,-480.0,0.00016049,2]
[382637157,1756689096002,-589.03,0.00016049,2]
[382637158,1756689096031,-487.96,0.00016049,2]
[382637159,1756689096059,-480.0,0.00016049,2]
[382637160,1756689096134,-480.0,0.0001605,2]
[382637161,1756689096162,-480.0,0.0001605,2]
[382637162,1756689096190,-480.0,0.0001605,2]
[382637163,1756689096219,-480.0,0.0001605,2]
[382637164,1756689096251,-480.0,0.0001605,2]
[382637165,1756689096279,-480.0,0.0001605,2]
[382637166,1756689096310,-2001.84,0.0001605,2]
[382637167,1756689096398,-236.33,0.0001605,2]
[382637168,1756689096427,-480.0,0.00016051,2]
[382637169,1756689096456,-480.0,0.00016051,2]
[382637170,1756689096488,-522.52,0.00016052,2]
[382637171,1756689096521,-480.0,0.00016052,2]
[382637172,1756689096553,-480.0,0.00016052,2]
[382637173,1756689096583,-480.0,0.00016052,2]
[382637174,1756689096611,-480.0,0.00016053,2]
[382637175,1756689096643,-480.0,0.00016053,2]
[382637176,1756689096671,-480.0,0.00016053,2]
[382637177,1756689096702,-322.31,0.00016053,2]
[382637179,1756689098770,-80.05,0.00016049,2]
[382637180,1756689098783,-399.95,0.00016049,2]
[382637181,1756689098792,-80.05,0.00016053,2]
[382637182,1756689098806,-77.64,0.00016053,2]
[382637183,1756689098817,-402.36,0.00016053,2]
[382637184,1756689112374,-500.0,0.00016048,2]
[382637185,1756689112407,-617.66107461,0.00016048,2]
[382637186,1756689112437,-617.66107461,0.00016048,2]
[382637187,1756689112467,-617.66107461,0.00016048,2]
[382637188,1756689112501,-617.66107461,0.00016048,2]
[382637189,1756689112533,-617.66107461,0.00016048,2]
[382637190,1756689112565,-617.66107461,0.00016048,2]
[382637191,1756689112595,-617.66107461,0.00016048,2]
[382637192,1756689112702,-617.66107461,0.00016048,2]
[382637193,1756689112731,-617.66107461,0.00016048,2]
[382637194,1756689112759,-617.66107461,0.00016048,2]
[382637195,1756689112789,-617.66107461,0.00016048,2]
[382637196,1756689112817,-617.66107461,0.00016048,2]
[382637197,1756689112845,-1184.68,0.00016049,2]
[382637198,1756689112873,-480.0,0.0001605,2]
[382637199,1756689112975,-676.25,0.00016051,2]
[382637200,1756689113003,-77.64,0.00016053,2]
[382637201,1756689113031,-480.0,0.00016053,2]
[382637202,1756689113061,-480.0,0.00016053,2]
[382637203,1756689113088,-480.0,0.00016053,2]
[382637204,1756689113119,-480.0,0.00016053,2]
[382637205,1756689113148,-480.0,0.00016053,2]
[382637206,1756689113177,-480.0,0.00016054,2]
[382637207,1756689113208,-603.63,0.00016054,2]
[382637208,1756689113237,-480.0,0.00016054,2]
[382637209,1756689113266,-84.97,0.00016054,2]
[382637210,1756689113354,-395.03,0.00016054,2]
[382637211,1756689113383,-480.0,0.00016054,2]
[382637212,1756689113414,-480.0,0.00016054,2]
[382637213,1756689113443,-480.0,0.00016054,2]
[382637214,1756689113623,-480.0,0.00016054,2]
[382637215,1756689113666,-480.0,0.00016054,2]
[382637216,1756689113695,-1734.13,0.00016054,2]
[382637217,1756689113724,-461.69,0.00016054,2]
[382637218,1756689113869,-18.31,0.00016054,2]
[382637219,1756689113897,-480.0,0.00016054,2]
[382637220,1756689113926,-480.0,0.00016054,2]
[382637221,1756689113956,-480.0,0.00016054,2]
[382637222,1756689113984,-564.53,0.00016054,2]
[382637223,1756689114013,-1151.58,0.00016054,2]
[382637224,1756689114041,-480.0,0.00016054,2]
[382637225,1756689114071,-480.0,0.00016054,2]
[382637226,1756689114101,-480.0,0.00016054,2]
[382637227,1756689114129,-291.17,0.00016054,2]
[382637228,1756689114276,-188.83,0.00016054,2]
[382637229,1756689114304,-560.4,0.00016054,2]
[382637230,1756689114334,-480.0,0.00016054,2]
[382637231,1756689114363,-480.0,0.00016054,2]
[382637232,1756689114392,-480.0,0.00016054,2]
[382637233,1756689114421,-480.0,0.00016054,2]
[382637234,1756689114454,-480.0,0.00016054,2]
[382637235,1756689114483,-480.0,0.00016054,2]
[382637236,1756689114516,-870.26,0.00016054,2]
[382637237,1756689114547,-480.0,0.00016054,2]
[382637238,1756689114790,-480.0,0.00016054,2]
[382637239,1756689114819,-480.0,0.00016054,2]
[382637240,1756689114849,-480.0,0.00016054,2]
[382637241,1756689114879,-1860.11,0.00016054,2]
[382637242,1756689114995,-3399.79,0.00016054,2]
[382637243,1756689115025,-480.0,0.00016054,2]
[382637244,1756689115053,-983.04,0.00016056,2]
[382637245,1756689115194,-1110.3,0.00016056,2]
[382637246,1756689115223,-160.0,0.00016057,2]
[382637247,1756689115256,-480.0,0.00016059,2]
[382637248,1756689115285,-1073.28,0.00016059,2]
[382637249,1756689115315,-480.0,0.00016061,2]
[382637250,1756689115348,-482.67512475,0.00016061,2]
[382637251,1756689115377,-480.0,0.00016061,2]
[382637252,1756689115408,-480.0,0.00016061,2]
[382637253,1756689115437,-27.4997505,0.00016061,2]
[382637254,1756689116554,-116.02933411,0.00016054,2]
[382637255,1756689116569,-274.35,0.00016054,2]
[382637256,1756689116588,-89.62066589,0.00016054,2]
[382637257,1756689116598,-452.5002495,0.00016061,2]
[382637258,1756689116607,-480.0,0.00016061,2]
[382637259,1756689116616,-88.17908461,0.00016061,2]
[382637260,1756689116635,-160.0,0.00016061,2]
[382637261,1756689116648,-231.82091539,0.00016061,2]
[382637262,1756689116657,-248.17908461,0.00016061,2]
[382637263,1756689116675,-751.82091539,0.00016061,2]
[382637264,1756689116684,-321.45908461,0.00016061,2]
[382637265,1756689116703,-158.54091539,0.00016061,2]
[382637266,1756689116712,-321.45908461,0.00016061,2]
[382637267,1756689116729,-158.54091539,0.00016061,2]
[382637268,1756689116738,-324.13420936,0.00016061,2]
[382637269,1756689116751,-155.86579064,0.00016061,2]
[382637270,1756689116761,-324.13420936,0.00016061,2]
[382637271,1756689116775,-155.86579064,0.00016061,2]
[382637272,1756689116784,-324.13420936,0.00016061,2]
[382637273,1756689116802,-155.86579064,0.00016061,2]
[382637274,1756689116812,-324.13420936,0.00016061,2]
[382637275,1756689121538,720.31997534,0.00015954,2]
[382637276,1756689138406,159.19165676,0.00015951,2]
[382637277,1756689166608,155.0,0.00027397,120]
[382637278,1756689186798,9840.81834324,0.00015949,2]
[382637279,1756689186820,10000.01,0.00015949,2]
[382637280,1756689186842,10000.01,0.00015949,2]
[382637281,1756689186864,10000.01,0.00015949,2]
[382637282,1756689187038,10000.01,0.00015949,2]
[382637283,1756689187061,10000.01,0.00015949,2]
[382637284,1756689187083,10000.01,0.00015949,2]
[382637285,1756689187105,10000.01,0.00015949,2]
[382637286,1756689187126,10000.01,0.00015949,2]
[382637287,1756689187150,159.20165676,0.00015949,2]
[382637288,1756689212084,547.26170914,0.0001601,2]
[382637289,1756689220034,5000.0,0.0001601,2]
[382637290,1756689228737,4293.5466341,0.0001601,2]
[382637291,1756689228760,563.06243938,0.0001601,2]
[382637292,1756689244854,5000.0,0.0001601,2]
[382637293,1756689323343,216.238698,0.00015052,2]
[382637294,1756689331051,792.34870317,0.0001595,2]
[382637295,1756689350377,3428.36015945,0.00015954,2]
[382637296,1756689350398,10000.01,0.00015954,2]
[382637297,1756689350420,10000.01,0.00015954,2]
[382637298,1756689350442,10000.01,0.00015954,2]
[382637299,1756689350464,9225.09674706,0.00015954,2]
[382637300,1756689361512,449.17,0.00027397,120]
[382637301,1756689410994,588.93546458,0.00015959,2]
[382637303,1756689490382,500.0,0.00025,30]
[382637304,1756689516868,185.97778836,0.00016,2]
[382637305,1756689516889,316.02221164,0.00016,2]
[382637306,1756689527486,693.3051153,0.00015949,2]
[382637309,1756689723245,606.64197587,0.00015948,2]
[382637311,1756689751500,471.14837164,0.0001595,2]
[382637312,1756689838394,4939.0,0.00015979,2]
[382637313,1756689878987,-278.61,0.00016039,3]
[382637314,1756689879019,-835.88,0.00016039,3]
[382637315,1756689879049,-300.0,0.00016042,2]
[382637316,1756689879077,-1200.0,0.00016043,2]
[382637317,1756689879104,-1200.0,0.00016043,2]
[382637318,1756689879132,-500.0,0.00016043,2]
[382637319,1756689879161,-500.0,0.00016043,2]
[382637320,1756689879211,-493.55794117,0.00016043,2]